fUST/lending_fUST_20240930
["ID","MTS","AMOUNT","RATE_DAILY","PERIOD"]
[339533129,1727681463899,-853.75,0.0001466,2]
[339533130,1727681463909,-500.0,0.0001466,2]
[339533131,1727681463919,-500.0,0.0001466,2]
[339533132,1727681463929,-500.0,0.0001466,2]
[339533133,1727681463940,-560.38822782,0.0001466,2]
[339533134,1727681463950,-647.0,0.0001466,2]
[339533135,1727681463961,-2204.93,0.0001466,2]
[339533136,1727681463971,-853.17,0.0001466,2]
[339533137,1727681463981,-541.31,0.0001466,2]
[339533138,1727681463991,-1899.06,0.0001466,2]
[339533139,1727681464001,-500.0,0.0001466,2]
[339533140,1727681464010,-500.0,0.0001466,2]
[339533141,1727681464020,-674.09,0.0001466,2]
[339533142,1727681464030,-1040.57,0.0001466,2]
[339533143,1727681464039,-500.0,0.0001466,2]
[339533144,1727681464050,-151.0,0.00014664,2]
[339533145,1727681464060,-151.0,0.00014664,2]
[339533146,1727681464070,-151.0,0.00014664,2]
[339533147,1727681464079,-168.489331,0.00014664,2]
[339533148,1727681464089,-168.489331,0.00014664,2]
[339533149,1727681464099,-337.37465,0.00014664,2]
[339533150,1727681464108,-337.37465,0.00014664,2]
[339533151,1727681464118,-151.0,0.00014664,2]
[339533152,1727681464127,-151.0,0.00014664,2]
[339533153,1727681464137,-1876.049761,0.00014664,2]
[339533154,1727681464147,-1876.049761,0.00014664,2]
[339533155,1727681464157,-151.0,0.00014664,2]
[339533156,1727681464167,-151.0,0.00014664,2]
[339533157,1727681464177,-151.0,0.00014664,2]
[339533158,1727681464187,-253.576248,0.00014664,2]
[339533159,1727681464197,-253.576248,0.00014664,2]
[339533160,1727681464207,-249.371505,0.00014664,2]
[339533161,1727681464216,-249.371505,0.00014664,2]
[339533162,1727681464226,-151.0,0.00014664,2]
[339533163,1727681464235,-980.355677,0.00014664,2]
[339533164,1727681464245,-980.355677,0.00014664,2]
[339533165,1727681464255,-151.0,0.00014664,2]
[339533166,1727681464264,-151.0,0.00014664,2]
[339533167,1727681464274,-191.612687,0.00014664,2]
[339533168,1727681464284,-752.66,0.0001467,2]
[339533169,1727681464294,-500.0,0.0001467,2]
[339533170,1727681464304,-629.28421942,0.0001467,2]
[339533171,1727681464313,-150.0,0.0001467,2]
[339533172,1727681464322,-500.0,0.0001467,2]
[339533173,1727681464332,-557.72,0.0001467,2]
[339533174,1727681464341,-500.0,0.0001467,2]
[339533175,1727681464353,-790.78,0.0001467,2]
[339533176,1727681464362,-500.0,0.0001467,2]
[339533177,1727681464372,-500.0,0.0001467,2]
[339533178,1727681464382,-500.0,0.0001467,2]
[339533179,1727681464391,-500.0,0.0001467,2]
[339533180,1727681464401,-500.0,0.0001467,2]
[339533181,1727681464411,-500.0,0.0001467,2]
[339533182,1727681464420,-500.0,0.0001467,2]
[339533183,1727681464430,-500.0,0.0001467,2]
[339533184,1727681464439,-500.0,0.0001467,2]
[339533185,1727681464449,-500.0,0.0001467,2]
[339533186,1727681464459,-500.0,0.0001467,2]
[339533187,1727681464468,-423.78479755,0.0001467,2]
[339533188,1727681464478,-500.35,0.0001467,2]
[339533189,1727681464488,-500.0,0.0001467,2]
[339533190,1727681464497,-500.0,0.0001467,2]
[339533191,1727681464507,-500.0,0.0001467,2]
[339533192,1727681464516,-500.0,0.0001467,2]
[339533193,1727681464526,-500.0,0.0001467,2]
[339533194,1727681464535,-822.42,0.0001467,2]
[339533195,1727681464545,-500.0,0.0001467,2]
[339533196,1727681464555,-500.0,0.0001467,2]
[339533197,1727681464564,-558.58969273,0.0001467,2]
[339533198,1727681464574,-500.0,0.0001467,2]
[339533199,1727681464585,-500.0,0.0001467,2]
[339533200,1727681464594,-500.0,0.0001467,2]
[339533201,1727681464604,-500.0,0.0001467,2]
[339533202,1727681464614,-500.0,0.0001467,2]
[339533203,1727681464624,-500.0,0.0001467,2]
[339533204,1727681464633,-500.0,0.0001467,2]
[339533205,1727681464643,-812.65,0.0001467,2]
[339533206,1727681464652,-500.0,0.0001467,2]
[339533207,1727681464662,-500.0,0.0001467,2]
[339533208,1727681464672,-500.0,0.0001467,2]
[339533209,1727681464682,-500.0,0.0001467,2]
[339533210,1727681464692,-500.0,0.0001467,2]
[339533211,1727681464701,-500.0,0.0001467,2]
[339533212,1727681464710,-369.4772742,0.0001467,2]
[339533213,1727681464720,-10888.99868364,0.0001467,2]
[339533214,1727681464729,-500.0,0.0001467,2]
[339533215,1727681464738,-651.29,0.0001467,2]
[339533216,1727681464748,-500.0,0.0001467,2]
[339533217,1727681464757,-500.0,0.0001467,2]
[339533218,1727681464767,-500.0,0.0001467,2]
[339533219,1727681464776,-500.0,0.0001467,2]
[339533220,1727681464786,-500.0,0.0001467,2]
[339533221,1727681464796,-500.0,0.0001467,2]
[339533222,1727681464805,-500.0,0.0001467,2]
[339533223,1727681464815,-500.0,0.0001467,2]
[339533224,1727681464824,-500.0,0.0001467,2]
[339533225,1727681464834,-500.0,0.0001467,2]
[339533226,1727681464844,-500.0,0.0001467,2]
[339533227,1727681464854,-524.0,0.0001467,2]
[339533228,1727681464863,-1856.46,0.0001467,2]
[339533229,1727681464873,-1158.1,0.0001467,2]
[339533230,1727681464884,-500.0,0.0001467,2]
[339533231,1727681464894,-627.1,0.0001467,2]
[339533232,1727681465082,-500.0,0.0001467,2]
[339533233,1727681465093,-500.0,0.0001467,2]
[339533234,1727681465104,-500.0,0.0001467,2]
[339533235,1727681465114,-611.64,0.0001467,2]
[339533236,1727681465124,-500.0,0.0001467,2]
[339533237,1727681465133,-500.0,0.0001467,2]
[339533238,1727681465143,-500.0,0.0001467,2]
[339533239,1727681465154,-500.0,0.0001467,2]
[339533240,1727681465164,-620.49,0.0001467,2]
[339533241,1727681465173,-500.0,0.0001467,2]
[339533242,1727681465184,-500.0,0.0001467,2]
[339533243,1727681465194,-326.17756451,0.0001467,2]
[339533244,1727681465205,-500.0,0.0001467,2]
[339533245,1727681465215,-500.0,0.0001467,2]
[339533246,1727681465225,-500.0,0.0001467,2]
[339533247,1727681465234,-500.0,0.0001467,2]
[339533248,1727681465244,-565.26,0.0001467,2]
[339533249,1727681465254,-500.0,0.0001467,2]
[339533250,1727681465264,-450.91210039,0.0001467,2]
[339533251,1727681465273,-500.0,0.0001467,2]
[339533252,1727681465283,-1515.6,0.0001467,2]
[339533253,1727681465292,-500.0,0.0001467,2]
[339533254,1727681465301,-500.0,0.0001467,2]
[339533255,1727681465311,-500.0,0.0001467,2]
[339533256,1727681465319,-500.0,0.0001467,2]
[339533257,1727681465329,-500.0,0.0001467,2]
[339533258,1727681465338,-500.0,0.0001467,2]
[339533259,1727681465347,-638.69,0.0001467,2]
[339533260,1727681465357,-511.87395407,0.0001467,2]
[339533261,1727681465368,-500.0,0.0001467,2]
[339533262,1727681465378,-500.0,0.0001467,2]
[339533263,1727681465387,-500.0,0.0001467,2]
[339533264,1727681465396,-500.0,0.0001467,2]
[339533265,1727681465405,-1686.69,0.0001467,2]
[339533266,1727681465415,-644.31,0.0001467,2]
[339533267,1727681465424,-789.78,0.0001467,2]
[339533268,1727681465433,-500.0,0.0001467,2]
[339533269,1727681465442,-500.0,0.0001467,2]
[339533270,1727681465451,-500.0,0.0001467,2]
[339533271,1727681465460,-488.65015113,0.0001467,2]
[339533272,1727681465469,-500.0,0.0001467,2]
[339533273,1727681465478,-1320.48,0.0001467,2]
[339533274,1727681465488,-500.0,0.0001467,2]
[339533275,1727681465497,-398.87235149,0.0001467,2]
[339533276,1727681465506,-500.0,0.0001467,2]
[339533277,1727681465515,-500.0,0.0001467,2]
[339533278,1727681465525,-500.0,0.0001467,2]
[339533279,1727681465535,-519.33805047,0.0001467,2]
[339533280,1727681465544,-945.37,0.0001467,2]
[339533281,1727681465553,-500.0,0.0001467,2]
[339533282,1727681465563,-500.0,0.0001467,2]
[339533283,1727681465573,-500.0,0.0001467,2]
[339533284,1727681465582,-590.66,0.0001467,2]
[339533285,1727681465591,-500.0,0.0001467,2]
[339533286,1727681465601,-500.0,0.0001467,2]
[339533287,1727681465610,-500.0,0.0001467,2]
[339533288,1727681465620,-613.75,0.0001467,2]
[339533289,1727681465630,-151.0,0.0001467,2]
[339533290,1727681465639,-871.39,0.0001467,2]
[339533291,1727681465648,-500.0,0.0001467,2]
[339533292,1727681465658,-541.11,0.0001467,2]
[339533293,1727681465668,-500.0,0.0001467,2]
[339533294,1727681465678,-611.96,0.0001467,2]
[339533295,1727681465688,-500.0,0.0001467,2]
[339533296,1727681465697,-500.0,0.0001467,2]
[339533297,1727681465707,-500.0,0.0001467,2]
[339533298,1727681465716,-1764.06,0.0001467,2]
[339533299,1727681465725,-500.0,0.0001467,2]
[339533300,1727681465734,-568.37302646,0.0001467,2]
[339533301,1727681465744,-500.0,0.0001467,2]
[339533302,1727681465753,-500.0,0.0001467,2]
[339533303,1727681465762,-500.0,0.0001467,2]
[339533304,1727681465772,-500.0,0.0001467,2]
[339533305,1727681465781,-951.31,0.0001467,2]
[339533306,1727681465790,-547.5,0.0001467,2]
[339533307,1727681465799,-500.0,0.0001467,2]
[339533308,1727681465808,-500.0,0.0001467,2]
[339533309,1727681465818,-500.0,0.0001467,2]
[339533310,1727681465827,-524.51,0.0001467,2]
[339533311,1727681465836,-500.0,0.0001467,2]
[339533312,1727681465846,-265.368698,0.0001467,2]
[339533313,1727681465856,-151.0,0.0001467,2]
[339533314,1727681465865,-151.0,0.0001467,2]
[339533315,1727681465876,-548.03062871,0.0001467,2]
[339533316,1727681465886,-265.368698,0.0001467,2]
[339533317,1727681465896,-500.0,0.0001467,2]
[339533318,1727681465905,-500.0,0.0001467,2]
[339533319,1727681465914,-500.0,0.0001467,2]
[339533320,1727681465923,-590.21,0.0001467,2]
[339533321,1727681465932,-500.0,0.0001467,2]
[339533322,1727681465941,-2654.0,0.0001467,2]
[339533323,1727681465950,-500.0,0.0001467,2]
[339533324,1727681465960,-500.0,0.0001467,2]
[339533325,1727681465969,-500.0,0.0001467,2]
[339533326,1727681465979,-1764.76,0.0001467,2]
[339533327,1727681465989,-151.0,0.0001467,2]
[339533328,1727681465998,-497.32144202,0.0001467,2]
[339533329,1727681466007,-500.0,0.0001467,2]
[339533330,1727681466017,-500.0,0.0001467,2]
[339533331,1727681466026,-6604.674897,0.0001467,2]
[339533332,1727681466036,-151.0,0.0001467,2]
[339533333,1727681466045,-530.93,0.0001467,2]
[339533334,1727681466054,-6604.674897,0.0001467,2]
[339533335,1727681466064,-500.0,0.0001467,2]
[339533336,1727681466073,-500.0,0.0001467,2]
[339533337,1727681466083,-153.184812,0.0001467,2]
[339533338,1727681466092,-500.0,0.0001467,2]
[339533339,1727681466103,-500.0,0.0001467,2]
[339533340,1727681466121,-500.0,0.0001467,2]
[339533341,1727681466131,-1364.67,0.0001467,2]
[339533342,1727681466140,-500.0,0.0001467,2]
[339533343,1727681466149,-852.05,0.0001467,2]
[339533344,1727681466158,-500.0,0.0001467,2]
[339533345,1727681466168,-500.0,0.0001467,2]
[339533346,1727681466177,-151.0,0.0001467,2]
[339533347,1727681466187,-500.0,0.0001467,2]
[339533348,1727681466196,-561.72638254,0.0001467,2]
[339533349,1727681466206,-500.0,0.0001467,2]
[339533350,1727681466215,-151.0,0.0001467,2]
[339533351,1727681466225,-500.0,0.0001467,2]
[339533352,1727681466234,-421.023992,0.0001467,2]
[339533353,1727681466244,-157.833404,0.0001467,2]
[339533354,1727681466254,-647.94,0.0001467,2]
[339533355,1727681466264,-500.0,0.0001467,2]
[339533356,1727681466273,-500.0,0.0001467,2]
[339533357,1727681466283,-500.0,0.0001467,2]
[339533358,1727681466293,-459.24372574,0.0001467,2]
[339533359,1727681466302,-535.0235395,0.0001467,2]
[339533360,1727681466311,-500.0,0.0001467,2]
[339533361,1727681466320,-151.0,0.0001467,2]
[339533362,1727681466329,-477.20734334,0.0001467,2]
[339533363,1727681466338,-518.79,0.0001467,2]
[339533364,1727681466347,-604.54,0.0001467,2]
[339533365,1727681466360,-854.726034,0.0001467,2]
[339533366,1727681466370,-497.02703912,0.0001467,2]
[339533367,1727681466380,-500.0,0.0001467,2]
[339533368,1727681466389,-854.726034,0.0001467,2]
[339533369,1727681466398,-661.98,0.0001467,2]
[339533370,1727681466410,-151.0,0.0001467,2]
[339533371,1727681466423,-539.98488515,0.0001467,2]
[339533372,1727681466433,-572.83379874,0.0001467,2]
[339533373,1727681466442,-500.0,0.0001467,2]
[339533374,1727681466451,-500.0,0.0001467,2]
[339533375,1727681466460,-647.34,0.0001467,2]
[339533376,1727681466470,-500.0,0.0001467,2]
[339533377,1727681466479,-795.75,0.0001467,2]
[339533378,1727681466488,-500.0,0.0001467,2]
[339533379,1727681466498,-500.0,0.0001467,2]
[339533380,1727681466507,-500.0,0.0001467,2]
[339533381,1727681466517,-773.8,0.0001467,2]
[339533382,1727681466527,-500.0,0.0001467,2]
[339533383,1727681466536,-500.0,0.0001467,2]
[339533384,1727681466545,-528.7,0.0001467,2]
[339533385,1727681466555,-500.0,0.0001467,2]
[339533386,1727681466564,-500.0,0.0001467,2]
[339533387,1727681466573,-947.39,0.0001467,2]
[339533388,1727681466582,-2274.35,0.0001467,2]
[339533389,1727681466592,-500.0,0.0001467,2]
[339533390,1727681466602,-500.0,0.0001467,2]
[339533391,1727681466611,-500.0,0.0001467,2]
[339533392,1727681466621,-3053.37,0.0001467,2]
[339533393,1727681466630,-500.0,0.0001467,2]
[339533394,1727681466639,-500.0,0.0001467,2]
[339533395,1727681466649,-500.0,0.0001467,2]
[339533396,1727681466658,-500.0,0.0001467,2]
[339533397,1727681466668,-532.14,0.0001467,2]
[339533398,1727681466678,-500.0,0.0001467,2]
[339533399,1727681466687,-500.0,0.0001467,2]
[339533400,1727681466697,-500.0,0.0001467,2]
[339533401,1727681466706,-157.560827,0.0001467,2]
[339533402,1727681466715,-151.0,0.0001467,2]
[339533403,1727681466724,-500.0,0.0001467,2]
[339533404,1727681466734,-500.0,0.0001467,2]
[339533405,1727681466743,-580.76,0.0001467,2]
[339533406,1727681466752,-500.0,0.0001467,2]
[339533407,1727681466761,-157.560827,0.0001467,2]
[339533408,1727681466770,-3026.49,0.0001467,2]
[339533409,1727681466779,-500.0,0.0001467,2]
[339533410,1727681466789,-500.0,0.0001467,2]
[339533411,1727681466797,-500.0,0.0001467,2]
[339533412,1727681466807,-500.0,0.0001467,2]
[339533413,1727681466816,-500.0,0.0001467,2]
[339533414,1727681466825,-500.0,0.0001467,2]
[339533415,1727681466834,-500.0,0.0001467,2]
[339533416,1727681466843,-507.1231986,0.0001467,2]
[339533417,1727681466853,-500.0,0.0001467,2]
[339533418,1727681466862,-500.0,0.0001467,2]
[339533419,1727681466872,-500.0,0.0001467,2]
[339533420,1727681466884,-151.0,0.0001467,2]
[339533421,1727681466893,-500.0,0.0001467,2]
[339533422,1727681466902,-563.08,0.0001467,2]
[339533423,1727681466912,-500.0,0.0001467,2]
[339533424,1727681466922,-637.71660856,0.0001467,2]
[339533425,1727681466931,-644.98,0.0001467,2]
[339533426,1727681466940,-500.0,0.0001467,2]
[339533427,1727681466950,-500.0,0.0001467,2]
[339533428,1727681466959,-500.0,0.0001467,2]
[339533429,1727681466969,-500.0,0.0001467,2]
[339533430,1727681466978,-500.0,0.0001467,2]
[339533431,1727681466987,-1787.443551,0.0001467,2]
[339533432,1727681466996,-582.33,0.0001467,2]
[339533433,1727681467006,-500.0,0.0001467,2]
[339533434,1727681467015,-1787.443551,0.0001467,2]
[339533435,1727681467025,-636.77,0.0001467,2]
[339533436,1727681467035,-500.0,0.0001467,2]
[339533437,1727681467045,-500.0,0.0001467,2]
[339533438,1727681467054,-500.0,0.0001467,2]
[339533439,1727681467064,-627.63,0.0001467,2]
[339533440,1727681467073,-682.72,0.0001467,2]
[339533441,1727681467083,-500.0,0.0001467,2]
[339533442,1727681467092,-500.0,0.0001467,2]
[339533443,1727681467101,-500.0,0.0001467,2]
[339533444,1727681467110,-500.0,0.0001467,2]
[339533445,1727681467119,-500.0,0.0001467,2]
[339533446,1727681467129,-500.0,0.0001467,2]
[339533447,1727681467138,-500.0,0.0001467,2]
[339533448,1727681467148,-500.0,0.0001467,2]
[339533449,1727681467157,-500.0,0.0001467,2]
[339533450,1727681467167,-500.0,0.0001467,2]
[339533451,1727681467176,-1413.41,0.0001467,2]
[339533452,1727681467185,-500.0,0.0001467,2]
[339533453,1727681467195,-804.8,0.0001467,2]
[339533454,1727681467204,-309.114078,0.0001467,2]
[339533455,1727681467213,-518.04130666,0.0001467,2]
[339533456,1727681467223,-173.702784,0.0001467,2]
[339533457,1727681467232,-500.0,0.0001467,2]
[339533458,1727681467241,-309.114078,0.0001467,2]
[339533459,1727681467250,-500.0,0.0001467,2]
[339533460,1727681467259,-173.702784,0.0001467,2]
[339533461,1727681467269,-500.0,0.0001467,2]
[339533462,1727681467278,-500.0,0.0001467,2]
[339533463,1727681467287,-1503.4,0.0001467,2]
[339533464,1727681467296,-500.0,0.0001467,2]
[339533465,1727681467306,-526.99,0.0001467,2]
[339533466,1727681467315,-781.07,0.0001467,2]
[339533467,1727681467324,-500.0,0.0001467,2]
[339533468,1727681467333,-503.816295,0.0001467,2]
[339533469,1727681467342,-642.951546,0.0001467,2]
[339533470,1727681467352,-503.816295,0.0001467,2]
[339533471,1727681467361,-500.0,0.0001467,2]
[339533472,1727681467371,-500.0,0.0001467,2]
[339533473,1727681467380,-642.951546,0.0001467,2]
[339533474,1727681467389,-500.0,0.0001467,2]
[339533475,1727681467398,-500.0,0.0001467,2]
[339533476,1727681467407,-500.0,0.0001467,2]
[339533477,1727681467416,-200.87518919,0.0001467,2]
[339533478,1727681467425,-500.0,0.0001467,2]
[339533479,1727681467434,-519.35,0.0001467,2]
[339533480,1727681467443,-6290.281849,0.0001467,2]
[339533481,1727681467453,-500.0,0.0001467,2]
[339533482,1727681467462,-500.0,0.0001467,2]
[339533483,1727681467472,-6290.281849,0.0001467,2]
[339533484,1727681467482,-500.0,0.0001467,2]
[339533485,1727681467491,-500.0,0.0001467,2]
[339533486,1727681467500,-725.73,0.0001467,2]
[339533487,1727681467510,-587.780477,0.0001467,2]
[339533488,1727681467519,-151.0,0.0001467,2]
[339533489,1727681467529,-587.780477,0.0001467,2]
[339533490,1727681467538,-4978.46105,0.0001467,2]
[339533491,1727681467547,-500.0,0.0001467,2]
[339533492,1727681467557,-500.0,0.0001467,2]
[339533493,1727681467566,-1987.518951,0.0001467,2]
[339533494,1727681467575,-500.0,0.0001467,2]
[339533495,1727681467585,-4978.46105,0.0001467,2]
[339533496,1727681467594,-500.0,0.0001467,2]
[339533497,1727681467604,-1987.518951,0.0001467,2]
[339533498,1727681467613,-500.0,0.0001467,2]
[339533499,1727681467622,-500.0,0.0001467,2]
[339533500,1727681467631,-500.0,0.0001467,2]
[339533501,1727681467641,-500.0,0.0001467,2]
[339533502,1727681467650,-797.44,0.0001467,2]
[339533503,1727681467659,-500.0,0.0001467,2]
[339533504,1727681467668,-500.0,0.0001467,2]
[339533505,1727681467677,-177.746097,0.0001467,2]
[339533506,1727681467686,-500.0,0.0001467,2]
[339533507,1727681467695,-177.746097,0.0001467,2]
[339533508,1727681467705,-500.0,0.0001467,2]
[339533509,1727681467714,-500.0,0.0001467,2]
[339533510,1727681467724,-523.01,0.0001467,2]
[339533511,1727681467733,-500.0,0.0001467,2]
[339533512,1727681467742,-500.0,0.0001467,2]
[339533513,1727681467751,-713.05771,0.0001467,2]
[339533514,1727681467760,-2296.0,0.0001467,2]
[339533515,1727681467769,-500.0,0.0001467,2]
[339533516,1727681467778,-500.0,0.0001467,2]
[339533517,1727681467787,-713.05771,0.0001467,2]
[339533518,1727681467797,-500.0,0.0001467,2]
[339533519,1727681467806,-500.0,0.0001467,2]
[339533520,1727681467814,-322.567389,0.0001467,2]
[339533521,1727681467823,-500.0,0.0001467,2]
[339533522,1727681467832,-500.0,0.0001467,2]
[339533523,1727681467842,-500.0,0.0001467,2]
[339533524,1727681467852,-322.567389,0.0001467,2]
[339533525,1727681467861,-151.0,0.0001467,2]
[339533526,1727681467871,-500.0,0.0001467,2]
[339533527,1727681467883,-500.0,0.0001467,2]
[339533528,1727681467893,-191.929704,0.0001467,2]
[339533529,1727681467902,-549.66,0.0001467,2]
[339533530,1727681467912,-191.929704,0.0001467,2]
[339533531,1727681467921,-590.32,0.0001467,2]
[339533532,1727681467931,-500.0,0.0001467,2]
[339533533,1727681467940,-151.0,0.0001467,2]
[339533534,1727681467949,-500.0,0.0001467,2]
[339533535,1727681467959,-500.0,0.0001467,2]
[339533536,1727681467969,-455.547621,0.0001467,2]
[339533537,1727681467978,-500.0,0.0001467,2]
[339533538,1727681467988,-500.0,0.0001467,2]
[339533539,1727681467997,-500.0,0.0001467,2]
[339533540,1727681468007,-455.547621,0.0001467,2]
[339533541,1727681468016,-1398.77,0.0001467,2]
[339533542,1727681468026,-500.0,0.0001467,2]
[339533543,1727681468035,-500.0,0.0001467,2]
[339533544,1727681468044,-500.0,0.0001467,2]
[339533545,1727681468053,-500.0,0.0001467,2]
[339533546,1727681468063,-500.0,0.0001467,2]
[339533547,1727681468072,-500.0,0.0001467,2]
[339533548,1727681468083,-646.373244,0.0001467,2]
[339533549,1727681468092,-615.95,0.0001467,2]
[339533550,1727681468102,-500.0,0.0001467,2]
[339533551,1727681468111,-646.373244,0.0001467,2]
[339533552,1727681468120,-151.0,0.0001467,2]
[339533553,1727681468130,-855.05,0.0001467,2]
[339533554,1727681468140,-500.0,0.0001467,2]
[339533555,1727681468149,-506.84709493,0.0001467,2]
[339533556,1727681468158,-1548.957586,0.0001467,2]
[339533557,1727681468167,-151.0,0.0001467,2]
[339533558,1727681468177,-1548.957586,0.0001467,2]
[339533559,1727681468187,-151.0,0.0001467,2]
[339533560,1727681468197,-500.0,0.0001467,2]
[339533561,1727681468207,-707.54,0.0001467,2]
[339533562,1727681468216,-500.0,0.0001467,2]
[339533563,1727681468226,-500.0,0.00014671,2]
[339533564,1727681468235,-500.0,0.00014671,2]
[339533565,1727681468244,-500.0,0.00014671,2]
[339533566,1727681468254,-500.0,0.00014671,2]
[339533567,1727681468263,-500.0,0.00014671,2]
[339533568,1727681468272,-500.0,0.00014671,2]
[339533569,1727681468281,-500.0,0.00014671,2]
[339533570,1727681468291,-500.0,0.00014671,2]
[339533571,1727681468300,-500.0,0.00014671,2]
[339533572,1727681468309,-500.0,0.00014671,2]
[339533573,1727681468318,-500.0,0.00014671,2]
[339533574,1727681468327,-500.0,0.00014671,2]
[339533575,1727681468336,-500.0,0.00014671,2]
[339533576,1727681468346,-480.22807127,0.00014671,2]
[339533577,1727681468516,-500.0,0.00014671,2]
[339533578,1727681468526,-563.36,0.00014671,2]
[339533579,1727681468535,-500.0,0.00014671,2]
[339533580,1727681468545,-667.45,0.00014671,2]
[339533581,1727681468555,-920.31,0.00014671,2]
[339533582,1727681468564,-1035.15,0.00014671,2]
[339533583,1727681468573,-500.0,0.00014671,2]
[339533584,1727681468582,-500.0,0.00014671,2]
[339533585,1727681468592,-514.29585305,0.00014671,2]
[339533586,1727681468601,-500.0,0.00014671,2]
[339533587,1727681468611,-552.32,0.00014671,2]
[339533588,1727681468622,-500.0,0.00014671,2]
[339533589,1727681468631,-873.33,0.00014671,2]
[339533590,1727681468640,-500.0,0.00014671,2]
[339533591,1727681468649,-500.0,0.00014671,2]
[339533592,1727681468658,-500.0,0.00014671,2]
[339533593,1727681468667,-500.0,0.00014671,2]
[339533594,1727681468676,-500.0,0.00014671,2]
[339533595,1727681468686,-382.37673874,0.00014671,2]
[339533596,1727681468695,-500.0,0.00014671,2]
[339533597,1727681468705,-500.0,0.00014671,2]
[339533598,1727681468714,-500.0,0.00014671,2]
[339533599,1727681468723,-500.0,0.00014671,2]
[339533600,1727681468732,-500.0,0.00014671,2]
[339533601,1727681468741,-520.47240236,0.00014671,2]
[339533602,1727681468751,-500.0,0.00014671,2]
[339533603,1727681468760,-1264.26,0.00014671,2]
[339533604,1727681468769,-500.0,0.00014671,2]
[339533605,1727681468779,-570.93,0.00014671,2]
[339533606,1727681468789,-500.0,0.00014671,2]
[339533607,1727681468798,-500.0,0.00014671,2]
[339533608,1727681468807,-500.0,0.00014671,2]
[339533609,1727681468817,-500.0,0.00014671,2]
[339533610,1727681468826,-500.0,0.00014671,2]
[339533611,1727681468835,-500.0,0.00014671,2]
[339533612,1727681468845,-500.0,0.00014671,2]
[339533613,1727681468854,-500.0,0.00014671,2]
[339533614,1727681468863,-841.61,0.00014671,2]
[339533615,1727681468873,-500.0,0.00014671,2]
[339533616,1727681468884,-500.0,0.00014671,2]
[339533617,1727681468893,-500.0,0.00014671,2]
[339533618,1727681468903,-500.0,0.00014671,2]
[339533619,1727681468912,-500.0,0.00014671,2]
[339533620,1727681468921,-500.0,0.00014671,2]
[339533621,1727681468930,-500.0,0.00014671,2]
[339533622,1727681468939,-500.0,0.00014671,2]
[339533623,1727681468948,-500.0,0.00014671,2]
[339533624,1727681468957,-612.50582851,0.00014671,2]
[339533625,1727681468967,-500.0,0.00014671,2]
[339533626,1727681468977,-2371.27,0.00014671,2]
[339533627,1727681468986,-500.0,0.00014671,2]
[339533628,1727681468996,-500.0,0.00014671,2]